bitfinex/quotes_SOLUSD_20250217
["timestamp","ask_amount","ask_price","bid_price","bid_amount"]
[1739796484413,14.75576239,186.95,186.93,0.76201028]
[1739796484587,9.90676239,186.94,186.93,0.76201028]
[1739796484791,54.88311195,186.94,186.91,0.76201028]
[1739796485105,9.90676239,186.92,186.91,0.76201028]
[1739796485617,9.90676239,186.92,186.9,0.76201028]
[1739796485817,9.90676239,186.91,186.89,0.76201028]
[1739796486028,9.90676239,186.9,186.88,0.76201028]
[1739796486186,9.90676239,186.89,186.88,0.76201028]
[1739796486817,15.25746239,186.89,186.88,0.76201028]
[1739796488091,15.25746239,186.89,186.86,0.76201028]
[1739796488305,9.90676239,186.87,186.85,0.76201028]
[1739796488518,9.90676239,186.86,186.85,0.76201028]
[1739796488822,20.84874487,186.86,186.85,0.76201028]
[1739796489815,15.49714487,186.86,186.85,0.76201028]
[1739796490036,84.86,186.94,186.92,0.76201028]
[1739796490197,20.0,186.92,186.91,0.76201028]
[1739796490398,35.49714487,186.92,186.9,0.76201028]
[1739796490601,35.49714487,186.91,186.9,0.76201028]
[1739796490812,40.84724487,186.91,186.9,0.76201028]
[1739796491015,20.84724487,186.91,186.9,0.76201028]
[1739796491316,15.49714487,186.91,186.9,0.76201028]
[1739796491631,15.49714487,186.92,186.91,0.76201028]
[1739796491930,15.49714487,186.93,186.91,0.76201028]
[1739796492316,5.3495,186.94,186.93,0.76201028]
[1739796492512,5.3484,186.97,186.96,0.76201028]
[1739796492714,20.84554487,186.97,186.96,0.76201028]
[1739796494303,15.49714487,186.97,186.96,0.76201028]
[1739796494795,20.84554487,186.97,186.96,0.76201028]
[1739796496522,20.84554487,186.97,186.95,0.76201028]
[1739796496723,15.49714487,186.96,186.95,0.76201028]
[1739796496947,15.49714487,186.96,186.94,0.76201028]
[1739796497101,5.3487,186.96,186.95,0.76201028]
[1739796497296,20.84584487,186.96,186.95,0.76201028]
[1739796500023,15.49714487,186.96,186.95,0.76201028]
[1739796500226,20.84584487,186.96,186.95,0.76201028]
[1739796500840,15.49714487,186.96,186.95,0.76201028]
[1739796501042,7.4356,187.0,186.99,0.76201028]
[1739796501342,22.93274487,187.0,186.97,0.76201028]
[1739796501548,15.49714487,186.98,186.97,0.76201028]
[1739796501833,15.49714487,186.98,186.95,0.76201028]
[1739796502005,15.49714487,186.96,186.95,0.76201028]
[1739796502643,15.49714487,186.96,186.94,0.76201028]
[1739796502819,15.49714487,186.95,186.94,0.76201028]
[1739796503337,20.84614487,186.95,186.94,0.76201028]
[1739796503537,20.84614487,186.95,186.93,0.76201028]
[1739796503736,15.49714487,186.94,186.93,0.76201028]
[1739796505347,20.84644487,186.94,186.93,0.76201028]
[1739796508321,36.34358974,186.94,186.91,0.76201028]
[1739796508519,15.49714487,186.92,186.9,0.76201028]
[1739796508746,15.49714487,186.91,186.9,0.76201028]
[1739796509412,20.84724487,186.91,186.9,0.76201028]
[1739796510614,15.26260466,186.91,186.9,0.76201028]
[1739796511121,9.91250466,186.91,186.9,0.76201028]
[1739796511327,15.26240466,186.92,186.91,0.76201028]
[1739796516260,5.3499,186.92,186.91,0.76201028]
[1739796516434,15.26240466,186.92,186.91,0.76201028]
[1739796516636,9.91250466,186.92,186.91,0.76201028]
[1739796517364,15.26230466,186.92,186.91,0.76201028]
[1739796520234,9.91250466,186.93,186.92,0.76201028]
[1739796520431,9.91250466,186.94,186.93,0.76201028]
[1739796521143,15.26150466,186.95,186.93,0.76201028]
[1739796521343,15.26150466,186.95,186.94,0.76201028]
[1739796523261,15.26150466,186.95,186.93,0.76201028]
[1739796523561,9.91250466,186.94,186.93,0.76201028]
[1739796523955,15.26180466,186.94,186.93,0.76201028]
[1739796528969,9.91250466,186.94,186.93,0.76201028]
[1739796530246,9.91250466,186.94,186.93,0.82501028]
[1739796531651,0.03,186.95,186.93,0.82501028]
[1739796531855,0.03,186.95,186.94,0.76201028]
[1739796534476,9.94250466,186.95,186.94,0.76201028]
[1739796538978,15.29150466,186.95,186.94,0.76201028]
[1739796539560,9.94250466,186.95,186.94,0.76201028]
[1739796540148,15.29150466,186.95,186.94,0.76201028]
[1739796540956,15.29150466,186.95,186.93,0.82501028]
[1739796541169,5.379,186.95,186.94,0.76201028]
[1739796541363,9.94250466,186.95,186.94,0.76201028]
[1739796543594,15.29150466,186.95,186.94,0.76201028]
[1739796544782,15.29150466,186.95,186.93,0.82501028]
[1739796544990,9.91250466,186.94,186.93,0.82501028]
[1739796546299,9.91250466,186.94,186.93,0.063]
[1739796547001,15.26180466,186.94,186.93,0.063]
[1739796548888,54.9118233,186.94,186.93,0.063]
[1739796551968,68.2850233,186.94,186.9,0.76201028]
[1739796552187,9.91250466,186.91,186.9,0.76201028]
[1739796554294,15.26260466,186.91,186.9,0.76201028]
[1739796555672,15.26260466,186.91,186.9,0.82501028]
[1739796556291,15.26260466,186.91,186.9,0.063]
[1739796556593,28.63800466,186.91,186.86,0.76201028]
[1739796556759,9.91250466,186.87,186.86,0.76201028]
[1739796557161,9.91250466,186.87,186.85,0.76201028]
[1739796557361,9.91250466,186.86,186.84,0.76201028]
[1739796557663,9.91250466,186.85,186.83,0.76201028]
[1739796557889,9.91250466,186.84,186.83,0.76201028]
[1739796558195,15.26460466,186.84,186.83,0.76201028]
[1739796563287,15.26460466,186.84,186.82,0.76201028]
[1739796563489,9.91250466,186.83,186.82,0.76201028]
[1739796565600,15.26490466,186.83,186.82,0.76201028]
[1739796567801,15.26490466,186.83,186.82,0.82501028]
[1739796568099,15.26490466,186.83,186.82,0.063]
[1739796568682,15.26490466,186.83,186.79,0.82501028]
[1739796568874,9.91250466,186.8,186.79,0.063]
[1739796569380,15.26580466,186.8,186.79,0.82501028]
[1739796573107,5.3529,186.82,186.81,0.76201028]
[1739796573283,9.91250466,186.83,186.82,0.76201028]
[1739796573607,15.26480466,186.84,186.83,0.76201028]
[1739796574187,54.9148233,186.84,186.83,0.76201028]
[1739796574393,54.9148233,186.84,186.82,0.76201028]
[1739796574616,9.91250466,186.83,186.82,0.76201028]
[1739796576987,15.26490466,186.83,186.82,0.76201028]
[1739796577392,15.26490466,186.83,186.81,0.76201028]
[1739796577599,9.91250466,186.82,186.81,0.76201028]
[1739796579108,15.26520466,186.82,186.81,0.76201028]
[1739796580114,15.26520466,186.82,186.8,0.76201028]
[1739796580315,15.26520466,186.82,186.76,0.82501028]
[1739796580316,20.0,186.78,186.76,0.82501028]
[1739796580482,20.9618,186.82,186.81,0.063]
[1739796582303,30.87430466,186.82,186.81,0.063]
[1739796582495,30.87430466,186.82,186.77,0.76201028]
[1739796582704,9.91250466,186.78,186.76,0.82501028]
[1739796582901,20.9618,186.82,186.77,0.76201028]
[1739796584610,20.9618,186.82,186.76,0.82501028]
[1739796584819,9.91250466,186.77,186.76,0.82501028]
[1739796586701,15.26660466,186.77,186.76,0.82501028]
[1739796587613,9.91250466,186.77,186.76,0.82501028]
[1739796588298,15.26660466,186.77,186.76,0.82501028]
[1739796589594,15.26660466,186.77,186.76,0.063]
[1739796591490,15.26660466,186.77,186.74,0.063]
[1739796591687,9.91250466,186.75,186.74,0.82501028]
[1739796593023,15.26720466,186.75,186.74,0.82501028]
[1739796594308,5.3539,186.78,186.77,0.76201028]
[1739796594508,9.91250466,186.78,186.77,0.76201028]
[1739796594704,15.26630466,186.78,186.77,0.76201028]
[1739796595096,9.91250466,186.78,186.77,0.76201028]
[1739796595422,9.91250466,186.8,186.78,0.76201028]
[1739796595622,9.91250466,186.8,186.79,0.76201028]
[1739796596417,9.91250466,186.81,186.8,0.76201028]
[1739796599802,0.063,186.82,186.81,0.76201028]
[1739796600227,9.97550466,186.82,186.81,0.76201028]
[1739796600996,15.32820466,186.82,186.81,0.76201028]
[1739796601196,9.97550466,186.82,186.81,0.76201028]
[1739796602531,0.063,186.82,186.81,0.76201028]
[1739796602904,9.97550466,186.82,186.81,0.76201028]
[1739796603626,0.063,186.82,186.81,0.76201028]
[1739796605196,9.97550466,186.82,186.81,0.76201028]
[1739796606506,0.063,186.82,186.81,0.76201028]
[1739796607204,9.97550466,186.82,186.81,0.76201028]
[1739796609527,0.063,186.82,186.81,0.76201028]
[1739796611338,0.063,186.82,186.81,6.11501028]
[1739796612017,0.063,186.82,186.81,0.76201028]
[1739796618322,0.063,186.82,186.81,19.52685881]
[1739796620053,0.063,186.82,186.81,6.11501028]
[1739796622253,0.063,186.82,186.81,19.52685881]
[1739796623353,0.063,186.82,186.81,30.43936347]
[1739796623557,0.063,186.82,186.81,31.43936347]
[1739796624034,0.063,186.82,186.81,35.35304708]
[1739796625136,0.063,186.82,186.81,38.48280297]
[1739796628434,0.0001,186.82,186.81,38.48280297]
[1739796628633,0.0001,186.82,186.81,117.28280297]
[1739796631583,0.0001,186.82,186.81,4.67569389]
[1739796632090,0.0001,186.82,186.81,18.08754242]
[1739796632443,0.0001,186.82,186.81,37.47816523]
[1739796632666,0.0001,186.82,186.81,38.47816523]
[1739796632871,0.0001,186.82,186.81,37.47816523]
[1739796633054,0.0001,186.82,186.81,36.47816523]
[1739796633254,0.0001,186.82,186.81,37.47816523]
[1739796633449,0.0001,186.82,186.81,33.56448162]
[1739796633657,0.0001,186.82,186.81,32.56448162]
[1739796634073,0.0001,186.82,186.81,19.52685881]
[1739796634942,0.0001,186.82,186.81,29.43936347]
[1739796635973,0.0001,186.82,186.81,14.17385881]
[1739796639647,0.0001,186.82,186.81,19.52685881]
[1739796640044,0.0001,186.82,186.81,29.43936347]
[1739796640355,0.0001,186.82,186.81,29.46936347]
[1739796640553,0.0001,186.82,186.81,14.20385881]
[1739796642252,0.0001,186.82,186.81,0.79201028]
[1739796642253,9.91260466,186.82,186.81,0.79201028]
[1739796642756,9.91260466,186.82,186.81,4.71704811]
[1739796643749,15.26530466,186.82,186.81,4.71704811]
[1739796643975,17.51360466,186.82,186.81,0.79201028]
[1739796644597,17.51360466,186.82,186.81,0.03]
[1739796647146,17.51360466,186.82,186.77,0.76201028]
[1739796647347,9.91250466,186.78,186.77,0.76201028]
[1739796647649,9.91250466,186.78,186.76,0.03]
[1739796647855,9.91250466,186.77,186.76,0.03]
[1739796649867,15.26660466,186.77,186.76,0.79201028]
[1739796655087,15.26660466,186.77,186.74,0.063]
[1739796655376,5.355,186.74,186.67,13.41184853]
[1739796655583,9.91250466,186.72,186.67,13.41184853]
[1739796656588,9.91250466,186.75,186.69,9.91250466]
[1739796656891,9.91250466,186.74,186.68,23.32435319]
[1739796657055,9.91250466,186.74,186.68,27.24315643]
[1739796657257,9.91250466,186.76,186.7,23.32435319]
[1739796657586,9.91250466,186.77,186.72,13.41184853]
[1739796657786,9.91250466,186.78,186.72,9.91250466]
[1739796657967,9.91250466,186.78,186.72,10.91250466]
[1739796658362,9.91250466,186.78,186.72,24.32435319]
[1739796658681,9.91250466,186.79,186.74,13.41184853]
[1739796659060,9.91250466,186.8,186.74,13.41184853]
[1739796659766,0.063,186.81,186.74,23.32435319]
[1739796660091,9.91250466,186.8,186.74,23.32435319]
[1739796660277,9.97550466,186.81,186.74,23.32435319]
[1739796660477,9.97550466,186.81,186.75,5.3547]
[1739796660793,9.91250466,186.8,186.75,5.3547]
[1739796662287,0.063,186.81,186.76,14.41184853]
[1739796662466,0.063,186.81,186.78,13.41184853]
[1739796662866,0.063,186.81,186.75,94.06720466]
[1739796663099,0.063,186.81,186.75,96.06720466]
[1739796663394,0.063,186.81,186.76,23.32435319]
[1739796663600,0.063,186.81,186.76,13.41184853]
[1739796664507,0.063,186.81,186.76,18.76604853]
[1739796669202,0.063,186.81,186.76,28.67855319]
[1739796672407,9.91250466,186.79,186.74,84.1848]
[1739796672582,9.91250466,186.77,186.74,0.03]
[1739796673094,9.91250466,186.77,186.74,13.44184853]
[1739796673291,9.91250466,186.76,186.74,13.44184853]
[1739796673602,9.91250466,186.76,186.74,0.03]
[1739796673777,9.91250466,186.75,186.74,0.03]
[1739796673980,9.91250466,186.76,186.74,0.03]
[1739796674490,5.3533,186.8,186.75,13.41184853]
[1739796674491,9.91250466,186.8,186.75,13.41184853]
[1739796674695,0.063,186.81,186.75,23.32435319]
[1739796674914,0.063,186.81,186.76,9.91250466]
[1739796675091,0.063,186.81,186.77,23.32435319]
[1739796675475,0.063,186.81,186.78,5.3538]
[1739796675804,0.063,186.81,186.79,13.41184853]
[1739796677368,0.063,186.81,186.77,23.32435319]
[1739796677574,0.063,186.81,186.78,18.76564853]
[1739796677902,9.97550466,186.81,186.77,5.3541]
[1739796678084,9.97550466,186.81,186.78,13.41184853]
[1739796678400,9.97550466,186.81,186.75,5.3545]
[1739796678587,9.97550466,186.81,186.76,13.41184853]
[1739796679180,9.91250466,186.8,186.76,13.41184853]
[1739796679381,9.91250466,186.8,186.75,5.3545]
[1739796679704,9.91250466,186.8,186.74,18.79674853]
[1739796679911,9.91250466,186.78,186.74,0.03]
[1739796680577,9.91250466,186.78,186.76,3.92327412]
[1739796681507,9.91250466,186.78,186.74,5.3849]
[1739796681677,9.91250466,186.79,186.74,5.3849]
[1739796682701,9.91250466,186.78,186.74,0.03]
[1739796683206,9.91250466,186.77,186.74,0.03]
[1739796683413,9.91250466,186.76,186.74,0.03]
[1739796684397,9.91250466,186.76,186.74,13.44184853]
[1739796684609,9.91250466,186.76,186.74,0.03]
[1739796684791,9.91250466,186.75,186.74,0.03]
[1739796686508,15.26720466,186.75,186.74,0.03]
[1739796686680,54.9172233,186.75,186.74,0.03]
[1739796687077,15.26720466,186.75,186.74,0.03]
[1739796689407,54.9172233,186.75,186.74,0.03]
[1739796689640,9.91250466,186.71,186.66,8.93647082]
[1739796689788,9.91250466,186.71,186.65,5.3576]
[1739796690583,9.91250466,186.71,186.67,3.93314708]
[1739796691008,9.91250466,186.7,186.67,3.93314708]
[1739796691310,9.91250466,186.71,186.67,3.93314708]
[1739796691494,5.355,186.74,186.67,3.93314708]
[1739796691495,9.91250466,186.7,186.67,3.93314708]
[1739796691901,9.91250466,186.7,186.66,3.14554338]
[1739796692500,9.91250466,186.7,186.65,5.3575]
[1739796693318,9.91250466,186.69,186.66,3.92904284]
[1739796693500,9.91250466,186.67,186.63,0.063]
[1739796693695,9.91250466,186.67,186.63,5.4211]
[1739796694402,9.91250466,186.69,186.64,13.41184853]
[1739796694626,9.91250466,186.69,186.65,5.3576]
[1739796695305,9.91250466,186.69,186.64,5.3578]
[1739796695708,9.91250466,186.68,186.64,5.3578]
[1739796695905,9.91250466,186.69,186.64,5.3578]
[1739796696517,5.3559,186.71,186.63,5.4211]
[1739796696724,9.91250466,186.68,186.63,5.4211]
[1739796697396,5.3559,186.71,186.63,5.4211]
[1739796697397,9.91250466,186.67,186.63,5.4211]
[1739796698622,9.91250466,186.68,186.63,5.4211]
[1739796698917,9.97550466,186.68,186.63,5.4211]
[1739796699124,0.063,186.68,186.63,5.4211]
[1739796700612,9.97550466,186.68,186.63,5.4211]
[1739796703608,9.91250466,186.67,186.63,0.063]
[1739796705029,9.91250466,186.66,186.63,0.063]
[1739796705327,9.91250466,186.65,186.63,0.063]
[1739796705497,9.91250466,186.66,186.63,0.063]
[1739796707534,9.91250466,186.65,186.63,0.063]
[1739796708933,9.91250466,186.66,186.63,0.063]
[1739796709131,9.91250466,186.67,186.63,0.063]
[1739796710241,0.063,186.68,186.63,13.47484853]
[1739796710905,9.97550466,186.68,186.63,13.47484853]
[1739796712035,9.91250466,186.67,186.63,5.4211]
[1739796712912,9.91250466,186.67,186.63,13.47484853]
[1739796713435,9.91250466,186.66,186.63,13.47484853]
[1739796714528,9.91250466,186.66,186.63,5.4211]
[1739796714916,9.91250466,186.66,186.63,0.063]
[1739796715532,9.91250466,186.65,186.63,0.063]
[1739796716344,9.91250466,186.64,186.63,0.063]
[1739796719937,9.91250466,186.65,186.63,0.063]
[1739796720236,9.91250466,186.64,186.63,0.063]
[1739796723252,9.91250466,186.65,186.63,0.063]
[1739796725139,9.91250466,186.64,186.63,0.063]
[1739796727162,9.91250466,186.65,186.63,0.063]
[1739796728945,9.91250466,186.66,186.63,0.063]
[1739796729430,9.97550466,186.67,186.63,0.063]
[1739796732535,9.91250466,186.66,186.63,0.063]
[1739796736130,9.97550466,186.67,186.63,0.063]
[1739796742657,9.91250466,186.65,186.63,0.063]
[1739796743547,9.91250466,186.64,186.63,0.063]
[1739796744563,17.54620466,186.64,186.63,0.063]
[1739796744866,9.97550466,186.67,186.63,0.063]
[1739796746069,0.063,186.67,186.63,13.47484853]
[1739796747447,9.97550466,186.67,186.63,0.063]
[1739796747767,9.91250466,186.66,186.63,0.063]
[1739796747952,9.91250466,186.65,186.63,0.063]
[1739796748268,9.91250466,186.64,186.63,0.063]
[1739796754471,15.27040466,186.64,186.63,0.063]
[1739796755243,9.91250466,186.64,186.63,0.063]
[1739796756263,15.27040466,186.64,186.63,0.063]
[1739796758671,9.91250466,186.64,186.63,0.063]
[1739796758857,15.27040466,186.64,186.63,0.063]
[1739796765569,15.27040466,186.64,186.61,0.063]
[1739796765570,20.0,186.6,186.58,0.063]
[1739796765876,20.03837407,186.59,186.58,0.063]
[1739796766050,59.68839271,186.59,186.58,0.063]
[1739796766478,59.68839271,186.59,186.57,0.03]
[1739796766670,49.5625233,186.58,186.57,0.03]
[1739796767186,49.5625233,186.58,186.51,0.03]
[1739796767375,9.91250466,186.56,186.51,0.03]
[1739796767558,15.27270466,186.56,186.55,0.0001]
[1739796767874,15.27270466,186.56,186.51,0.03]
[1739796767875,20.0,186.53,186.51,0.03]
[1739796768070,9.91250466,186.52,186.51,0.03]
[1739796769582,15.27380466,186.52,186.51,0.03]
[1739796771357,17.53430466,186.52,186.51,0.03]
[1739796773187,30.93760466,186.52,186.44,0.063]
[1739796773366,9.91250466,186.45,186.44,0.063]
[1739796778085,9.91250466,186.46,186.44,0.063]
[1739796779173,15.6638,186.52,186.44,0.063]
[1739796779174,9.91250466,186.45,186.44,0.063]
[1739796780776,17.50630466,186.45,186.44,0.063]
[1739796781892,30.91470466,186.45,186.32,160.363]
[1739796782204,5.3633,186.45,186.38,9.91250466]
[1739796782362,15.27580466,186.45,186.39,9.91250466]
[1739796782566,9.91250466,186.41,186.34,78.8]
[1739796782799,13.408,186.46,186.44,0.03]
[1739796783098,25.38225752,186.46,186.33,88.71250466]
[1739796783297,9.91250466,186.39,186.33,9.91250466]
[1739796783975,9.91250466,186.38,186.33,13.41184853]
[1739796785495,9.91250466,186.38,186.33,18.77854853]
[1739796785794,9.91250466,186.39,186.33,28.69105319]
[1739796786693,9.91250466,186.4,186.34,9.91250466]
[1739796787182,9.91250466,186.39,186.33,28.69105319]
[1739796788686,9.91250466,186.38,186.33,28.69105319]
[1739796791395,15.27760466,186.39,186.33,28.69105319]
[1739796792700,2.1078,186.43,186.34,9.91250466]
[1739796792701,9.91250466,186.4,186.34,9.91250466]
[1739796794396,9.91250466,186.42,186.36,23.32435319]
[1739796794748,9.91250466,186.45,186.39,9.91250466]
[1739796794902,21.88676218,186.46,186.4,9.91250466]
[1739796795071,0.063,186.45,186.4,9.91250466]
[1739796796290,0.063,186.45,186.41,9.91250466]
[1739796796810,0.063,186.45,186.43,9.91250466]
[1739796797475,0.063,186.45,186.44,13.41184853]
[1739796797897,0.063,186.45,186.42,9.91250466]
[1739796798321,0.063,186.45,186.43,5.3639]
[1739796799024,0.063,186.45,186.43,15.27640466]
[1739796800014,0.063,186.45,186.44,9.91250466]
[1739796800216,0.063,186.45,186.44,23.32435319]
[1739796801601,0.063,186.45,186.44,25.32435319]
[1739796801796,0.063,186.45,186.44,24.32435319]
[1739796802210,0.063,186.45,186.44,28.68795319]
[1739796803415,0.063,186.45,186.44,30.68795319]
[1739796804728,12.03628351,186.5,186.46,1.0]
[1739796804935,12.03628351,186.5,186.49,9.91250466]
[1739796805427,12.03628351,186.5,186.48,9.91250466]
[1739796805726,12.03628351,186.5,186.47,28.68685319]
[1739796805922,12.03628351,186.5,186.48,13.41184853]
[1739796806123,12.03628351,186.5,186.48,23.32435319]
[1739796806640,12.03628351,186.5,186.47,9.91250466]
[1739796806808,12.03628351,186.5,186.43,9.91250466]
[1739796806809,9.91250466,186.49,186.43,9.91250466]
[1739796807236,9.91250466,186.49,186.44,13.41184853]
[1739796807823,9.91250466,186.49,186.42,15.27670466]
[1739796808005,9.91250466,186.48,186.42,15.27670466]
[1739796810047,21.94878817,186.5,186.44,9.91250466]
[1739796810832,21.94878817,186.5,186.45,5.3633]
[1739796811007,12.03628351,186.5,186.46,23.32435319]
[1739796811214,12.03628351,186.5,186.47,9.91250466]
[1739796812933,12.03628351,186.5,186.47,15.27520466]
[1739796813531,12.03628351,186.5,186.46,18.77484853]
[1739796814113,12.03628351,186.5,186.45,9.91250466]
[1739796814335,21.94878817,186.5,186.45,5.3632]
[1739796816416,12.03628351,186.5,186.45,5.3632]
[1739796816921,12.03628351,186.5,186.46,23.32435319]
[1739796817147,12.03628351,186.5,186.47,9.91250466]
[1739796817528,12.03628351,186.5,186.46,23.32435319]
[1739796818547,12.03628351,186.5,186.47,5.3627]
[1739796818845,12.09928351,186.5,186.47,5.3627]
[1739796819433,12.09928351,186.5,186.46,5.363]
[1739796820243,12.09928351,186.5,186.46,15.27550466]
[1739796827962,12.09928351,186.5,186.43,92.2095]
[1739796828260,12.09928351,186.5,186.45,9.91250466]
[1739796829643,12.09928351,186.5,186.46,9.91250466]
[1739796830136,12.09928351,186.5,186.47,5.3627]
[1739796832241,12.09928351,186.5,186.47,15.27520466]
[1739796832637,12.09928351,186.5,186.46,9.91250466]
[1739796832835,12.09928351,186.5,186.46,15.27550466]
[1739796834662,12.09928351,186.5,186.46,5.363]
[1739796836247,12.09928351,186.5,186.46,15.27550466]
[1739796837146,12.09928351,186.5,186.45,28.71755319]
[1739796838562,12.09928351,186.5,186.45,15.30570466]
[1739796838742,27.37368817,186.5,186.45,0.03]
[1739796840167,9.91250466,186.49,186.45,0.03]
[1739796840341,15.27470466,186.49,186.45,0.03]
[1739796841953,9.91250466,186.49,186.45,0.03]
[1739796842269,12.09928351,186.5,186.45,0.03]
[1739796842958,17.46128351,186.5,186.45,0.03]
[1739796844072,27.37378817,186.5,186.45,0.03]
[1739796846548,17.46128351,186.5,186.45,0.03]
[1739796847778,12.09928351,186.5,186.45,9.94250466]
[1739796848449,12.09928351,186.5,186.46,13.85847042]
[1739796848775,12.09928351,186.5,186.48,9.91250466]
[1739796849452,12.09928351,186.5,186.49,9.91250466]
[1739796850350,12.09928351,186.5,186.48,15.27470466]
[1739796856464,12.09928351,186.5,186.49,9.91250466]
[1739796857366,12.09928351,186.5,186.48,15.27470466]
[1739796858178,12.09928351,186.5,186.47,9.91250466]
[1739796858484,12.09928351,186.5,186.46,15.27540466]
[1739796858690,12.09928351,186.5,186.46,5.3629]
[1739796859960,12.09928351,186.5,186.47,3.15680409]
[1739796860689,12.09928351,186.5,186.48,3.94610506]
[1739796862085,12.09928351,186.5,186.45,78.83]
[1739796862086,22.01178817,186.5,186.45,78.83]
[1739796862254,27.37378817,186.5,186.45,78.83]
[1739796862582,17.46128351,186.5,186.45,78.83]
[1739796863095,12.09928351,186.5,186.45,78.83]
[1739796863590,12.09928351,186.5,186.46,9.91250466]
[1739796864574,12.09928351,186.5,186.47,9.91250466]
[1739796864951,12.09928351,186.5,186.46,9.91250466]
[1739796865486,12.09928351,186.5,186.47,3.15678147]
[1739796867064,12.09928351,186.5,186.46,9.91250466]
[1739796867593,12.09928351,186.5,186.46,15.27540466]
[1739796868966,12.09928351,186.5,186.47,9.91250466]
[1739796869390,12.09928351,186.5,186.46,9.91250466]
[1739796869579,12.09928351,186.5,186.45,9.94250466]
[1739796870200,12.09928351,186.5,186.47,3.94591967]
[1739796870797,12.09928351,186.5,186.46,3.15674147]
[1739796871463,17.46118351,186.5,186.46,3.15674147]
[1739796871671,9.91250466,186.49,186.46,3.15674147]
[1739796872099,9.91250466,186.49,186.45,0.03]
[1739796872599,27.37368817,186.5,186.46,39.8111]
[1739796874094,9.91250466,186.49,186.46,39.8111]
[1739796874274,9.91250466,186.47,186.46,39.8111]
[1739796874667,11.64280466,186.47,186.46,39.8111]
[1739796875190,17.00550466,186.47,186.46,39.8111]
[1739796882310,17.00550466,186.47,186.46,12.7701]
[1739796884302,17.00550466,186.47,186.45,0.03]
[1739796884507,9.91250466,186.46,186.45,0.03]
[1739796885874,15.27550466,186.46,186.45,0.03]
[1739796887583,20.0,186.43,186.4,0.03]
[1739796887774,9.91250466,186.41,186.4,0.03]
[1739796890517,15.27700466,186.41,186.4,0.03]
[1739796891507,9.91250466,186.41,186.4,0.03]
[1739796892927,15.27700466,186.41,186.4,0.03]
[1739796898227,15.27700466,186.41,186.33,0.03]
[1739796898424,9.91250466,186.37,186.33,0.03]
[1739796898631,9.91250466,186.36,186.33,0.03]
[1739796900229,15.27860466,186.36,186.33,0.03]
[1739796901754,9.91250466,186.34,186.33,0.03]
[1739796902360,15.27900466,186.34,186.33,0.03]
[1739796903359,9.91250466,186.35,186.33,0.03]
[1739796903934,9.91250466,186.36,186.33,0.03]
[1739796905049,15.27840466,186.36,186.33,0.03]
[1739796906726,9.91250466,186.35,186.33,0.03]
[1739796909270,9.91250466,186.37,186.33,0.03]
[1739796909466,3.77675412,186.42,186.34,9.91250466]
[1739796909660,15.27700466,186.41,186.34,9.91250466]
[1739796910240,15.27700466,186.41,186.35,9.91250466]
[1739796911163,15.27700466,186.41,186.34,9.91250466]
[1739796911554,9.91250466,186.4,186.34,9.91250466]
[1739796912434,9.91250466,186.4,186.34,15.27890466]
[1739796912947,15.27700466,186.41,186.34,15.27890466]
[1739796913342,15.34000466,186.41,186.34,15.27890466]
[1739796915820,0.063,186.41,186.37,9.91250466]
[1739796916443,0.063,186.41,186.36,9.91250466]
[1739796916647,9.97550466,186.41,186.35,9.91250466]
[1739796916943,9.91250466,186.39,186.33,15.30920466]
[1739796918325,9.91250466,186.38,186.33,0.03]
[1739796918531,0.063,186.41,186.36,20.0]
[1739796918732,0.063,186.5,186.41,1.0]
[1739796918930,0.063,186.5,186.48,9.91250466]
[1739796920149,0.063,186.5,186.49,9.91250466]
[1739796920526,0.063,186.5,186.49,15.27470466]
[1739796920929,0.063,186.5,186.49,28.68655319]
[1739796924868,0.063,186.5,186.49,29.49054804]
[1739796925728,0.063,186.5,186.49,108.29054804]
[1739796925954,0.063,186.5,186.49,108.48655319]
[1739796926341,0.063,186.6,186.53,20.0]
[1739796926544,0.063,186.6,186.56,9.91250466]
[1739796927265,0.063,186.6,186.5,93.21184853]
[1739796927266,0.063,186.6,186.58,9.91250466]
[1739796927674,0.063,186.6,186.57,9.91250466]
[1739796927978,9.91250466,186.59,186.53,9.91250466]
[1739796928181,9.91250466,186.56,186.49,9.91250466]
[1739796928365,9.91250466,186.55,186.49,9.91250466]
[1739796928970,9.91250466,186.56,186.49,9.91250466]
[1739796929355,15.27260466,186.57,186.5,9.91250466]
[1739796929555,5.3601,186.57,186.51,9.91250466]